bitfinex/quotes_ETHUSD_20250424
["timestamp","ask_amount","ask_price","bid_price","bid_amount"]
[1745463450439,10.67341318,1778.6,1778.3,5.62323702]
[1745463450604,10.67341318,1778.6,1778.3,3.0]
[1745463451636,10.67341318,1778.6,1778.5,3.94716157]
[1745463452036,10.67339964,1778.6,1778.5,3.94716157]
[1745463453168,12.30296874,1778.6,1778.5,3.94716157]
[1745463454675,10.67339964,1778.6,1778.5,3.94716157]
[1745463455576,5.62303193,1778.4,1778.3,3.94716157]
[1745463455735,6.37444379,1778.5,1778.3,3.94716157]
[1745463458489,5.62303193,1778.4,1778.3,3.94716157]
[1745463458642,6.37444379,1778.5,1778.3,3.94716157]
[1745463458947,8.07924274,1778.5,1778.3,3.94716157]
[1745463459648,10.67354572,1778.6,1778.3,3.94716157]
[1745463459848,10.67354572,1778.6,1778.5,3.94716157]
[1745463460057,5.051,1778.6,1778.5,3.94716157]
[1745463460350,10.67339964,1778.6,1778.5,3.94716157]
[1745463461886,5.62398065,1778.1,1777.9,3.94716157]
[1745463462770,11.42547113,1778.2,1777.9,3.94716157]
[1745463462962,11.42547113,1778.2,1778.1,3.94716157]
[1745463463286,10.67387113,1778.2,1778.1,3.94716157]
[1745463463483,5.05,1778.2,1778.1,3.94716157]
[1745463464663,10.67366437,1778.2,1778.1,3.94716157]
[1745463464860,5.62419077,1778.1,1778.0,3.94716157]
[1745463465986,6.44389077,1778.1,1778.0,3.94716157]
[1745463466192,5.62517031,1777.8,1777.6,3.94716157]
[1745463466367,5.05,1777.8,1777.6,3.94716157]
[1745463466767,10.67506436,1777.8,1777.6,3.94716157]
[1745463467092,5.05,1777.8,1777.6,3.94716157]
[1745463467288,10.67494305,1777.8,1777.6,3.94716157]
[1745463471995,5.6252461,1777.7,1777.6,3.94716157]
[1745463472496,6.4449461,1777.7,1777.4,3.0]
[1745463472673,5.62618013,1777.5,1777.4,3.94716157]
[1745463472869,5.62575446,1777.6,1777.4,3.94716157]
[1745463473065,5.62587904,1777.5,1777.4,3.94716157]
[1745463474305,5.62587904,1777.5,1777.4,3.89716157]
[1745463474478,6.75104239,1777.5,1777.4,3.89716157]
[1745463475797,0.7688,1777.4,1777.1,3.94716157]
[1745463476097,0.7688,1777.4,1777.0,3.0]
[1745463476098,5.62675014,1777.3,1777.0,3.0]
[1745463476306,10.67658606,1777.3,1777.0,3.0]
[1745463477302,10.67658606,1777.3,1777.2,3.94716157]
[1745463477898,12.38375894,1777.3,1777.2,3.94716157]
[1745463480795,0.8281,1777.6,1777.2,6.94716157]
[1745463480995,5.051,1777.6,1777.5,6.94716157]
[1745463481314,5.62507087,1777.8,1777.5,7.75116157]
[1745463481511,5.051,1777.7,1777.5,9.42986258]
[1745463481714,5.051,1777.7,1777.6,3.0]
[1745463482280,18.551,1777.9,1777.7,3.0]
[1745463482502,5.051,1777.8,1777.7,3.0]
[1745463482723,5.051,1777.8,1777.7,3.94716157]
[1745463485235,5.051,1777.8,1777.6,3.94716157]
[1745463485236,11.50424366,1777.8,1777.6,3.94716157]
[1745463485407,17.1294357,1777.8,1777.6,3.94716157]
[1745463485613,15.07228723,1777.8,1777.6,3.94716157]
[1745463485919,5.6252461,1777.7,1777.6,3.94716157]
[1745463487990,24.17586604,1777.9,1777.6,3.94716157]
[1745463488326,24.17586604,1777.9,1777.8,3.94716157]
[1745463488622,29.22686604,1777.9,1777.8,3.94716157]
[1745463488824,32.79480525,1777.9,1777.8,3.94716157]
[1745463491201,22.11893921,1777.9,1777.8,3.94716157]
[1745463491407,0.55,1778.4,1777.8,3.94716157]
[1745463491408,0.8281,1778.4,1777.9,3.0]
[1745463491638,5.62368841,1778.2,1777.9,3.0]
[1745463491810,5.62368841,1778.2,1778.1,3.94716157]
[1745463492541,5.62399791,1778.1,1777.9,3.0]
[1745463492729,5.62399791,1778.1,1778.0,3.94716157]
[1745463494632,5.62381125,1778.2,1778.0,3.94716157]
[1745463494830,5.62398065,1778.1,1778.0,3.94716157]
[1745463495030,5.62439233,1778.0,1777.8,0.804]
[1745463495234,5.62439233,1778.0,1777.8,3.94716157]
[1745463495554,5.62411452,1778.1,1777.9,0.8198]
[1745463495851,5.62411452,1778.1,1778.0,3.94716157]
[1745463496311,6.81370016,1778.2,1778.0,3.94716157]
[1745463497163,1.1899229,1778.2,1778.0,3.94716157]
[1745463497317,5.05,1778.2,1778.0,9.5714416]
[1745463497518,19.3792,1778.6,1778.1,8.62371479]
[1745463497717,25.00159964,1778.6,1778.5,3.94716157]
[1745463497946,33.1139994,1778.6,1778.5,3.94716157]
[1745463498767,33.1139994,1778.6,1778.1,8.62371479]
[1745463498768,5.62303193,1778.4,1778.3,3.94716157]
[1745463499949,3.06239976,1778.6,1778.3,6.94716157]
[1745463500127,0.8252,1778.9,1778.5,3.94716157]
[1745463500326,5.05,1778.8,1778.5,8.62259698]
[1745463500540,5.05,1778.8,1778.6,0.7956]
[1745463501551,5.05,1778.8,1778.7,3.94716157]
[1745463508348,11.73891398,1778.8,1778.5,3.0]
[1745463508528,5.62230332,1778.7,1778.6,3.94716157]
[1745463509425,5.62239964,1778.6,1778.4,3.94716157]
[1745463510031,5.62239964,1778.6,1778.4,6.94716157]
[1745463510967,5.6221936,1778.7,1778.4,6.94716157]
[1745463511264,5.05,1778.8,1778.6,3.94716157]
[1745463511568,5.05,1778.8,1778.6,4.77796157]
[1745463511771,10.67176977,1778.8,1778.6,4.77796157]
[1745463513738,10.68403993,1778.8,1778.6,4.77796157]
[1745463518469,10.68403993,1778.8,1778.6,3.94716157]
[1745463518830,5.62316957,1778.4,1778.2,0.8308]
[1745463519096,5.62313916,1778.4,1778.1,3.94716157]
[1745463519383,10.66913916,1778.4,1778.3,3.94716157]
[1745463525355,5.046,1778.4,1778.3,3.94716157]
[1745463525556,10.66903193,1778.4,1778.0,10.40206179]
[1745463525774,5.62345891,1778.3,1778.0,3.8308]
[1745463526062,5.62345891,1778.3,1778.2,3.94716157]
[1745463527405,10.66903193,1778.4,1778.2,3.94716157]
[1745463528113,5.62334814,1778.3,1778.2,3.94716157]
[1745463529205,10.6692459,1778.4,1778.2,3.94716157]
[1745463529409,16.29255137,1778.4,1778.2,3.94716157]
[1745463530214,5.62334814,1778.3,1778.2,3.94716157]
[1745463532299,6.43404814,1778.3,1778.2,3.94716157]
[1745463532481,8.14437754,1778.3,1778.2,3.94716157]
[1745463535498,6.43404814,1778.3,1778.2,3.94716157]
[1745463537917,6.43404814,1778.3,1778.1,3.94716157]
[1745463538114,5.62456412,1778.0,1777.8,3.94716157]
[1745463538424,5.62416479,1778.1,1778.0,3.94716157]
[1745463538588,10.66816479,1778.1,1778.0,3.94716157]
[1745463540418,5.044,1778.1,1778.0,3.94716157]
[1745463540711,5.044,1778.2,1778.0,7.98736345]
[1745463541012,5.044,1778.2,1778.1,3.94716157]
[1745463541391,11.24706055,1778.3,1778.1,3.94716157]
[1745463541609,5.044,1778.2,1778.1,3.94716157]
[1745463541926,11.24706055,1778.3,1778.1,3.94716157]
[1745463542290,5.044,1778.2,1778.1,3.94716157]
[1745463543131,5.044,1778.4,1778.2,3.8156]
[1745463543293,5.044,1778.4,1778.3,3.94716157]
[1745463543623,0.01227016,1778.8,1778.5,5.62260354]
[1745463543809,0.01227016,1778.8,1778.7,3.94716157]
[1745463545824,0.01227016,1778.8,1778.7,10.89432314]
[1745463546008,0.01227016,1778.8,1778.7,17.33200668]
[1745463546195,8.73325139,1779.2,1779.0,3.8156]
[1745463546399,8.73325139,1779.2,1779.1,3.94716157]
[1745463546725,5.044,1779.2,1779.1,3.94716157]
[1745463548993,5.62039265,1779.3,1779.1,3.94716157]
[1745463549202,10.66339265,1779.3,1779.1,3.94716157]
[1745463549938,5.043,1779.3,1779.1,3.94716157]
[1745463550101,10.66324497,1779.3,1779.1,3.94716157]
[1745463551116,5.62050359,1779.2,1779.1,3.94716157]
[1745463551839,10.66339449,1779.3,1779.1,3.94716157]
[1745463552307,5.62050359,1779.2,1779.1,3.94716157]
[1745463553163,5.62081951,1779.1,1778.6,0.8156]
[1745463553440,5.62190205,1778.8,1778.6,0.8156]
[1745463553613,10.66363518,1778.9,1778.7,3.94716157]
[1745463553802,5.042,1778.9,1778.7,3.94716157]
[1745463554005,5.042,1778.9,1778.7,5.15747773]
[1745463554703,10.66357317,1778.9,1778.7,5.15747773]
[1745463556501,11.47647317,1778.9,1778.5,0.8194]
[1745463556801,5.62225886,1778.7,1778.3,6.44264114]
[1745463557006,5.62225886,1778.7,1778.6,3.94716157]
[1745463561925,5.62176748,1778.8,1778.6,3.94716157]
[1745463561926,5.62199168,1778.8,1778.6,3.94716157]
[1745463562126,5.62208354,1778.7,1778.6,3.94716157]
[1745463562318,10.66408354,1778.7,1778.6,3.94716157]
[1745463563842,6.43436032,1778.9,1778.6,3.94716157]
[1745463564153,5.62146032,1778.9,1778.8,3.94716157]
[1745463564353,5.039,1779.0,1778.8,3.94716157]
[1745463564514,5.039,1779.0,1778.8,4.65658248]
[1745463564857,10.66013638,1779.0,1778.8,4.65658248]
[1745463565752,5.039,1779.0,1778.8,4.65658248]
[1745463566052,5.62061269,1779.2,1778.9,3.8194]
[1745463566255,10.65961269,1779.2,1779.1,3.94716157]
[1745463566753,18.548,1779.4,1779.1,3.94716157]
[1745463566754,5.62003104,1779.4,1779.1,3.94716157]
[1745463566920,5.61961327,1779.5,1779.3,3.94716157]
[1745463567120,10.65887186,1779.4,1779.3,3.94716157]
[1745463568452,11.73959828,1779.4,1779.3,3.94716157]
[1745463568654,6.11972642,1779.4,1779.0,3.0]
[1745463568832,5.62066092,1779.2,1779.1,3.94716157]
[1745463573665,5.61298122,1779.2,1779.1,3.94716157]
[1745463577966,5.62033827,1779.3,1779.1,3.94716157]
[1745463578170,10.65903888,1779.4,1779.1,3.94716157]
[1745463578371,10.65903888,1779.4,1779.3,3.94716157]
[1745463579672,10.65903888,1779.4,1779.3,4.34187773]
[1745463579976,5.039,1779.4,1779.3,4.34187773]
[1745463580472,10.65887186,1779.4,1779.3,4.34187773]
[1745463581170,5.62066139,1779.2,1778.9,3.7866]
[1745463581470,5.62066139,1779.2,1779.1,3.94716157]
[1745463583476,5.62040802,1779.3,1779.1,3.94716157]
[1745463585878,5.62050359,1779.2,1779.1,3.94716157]
[1745463587264,6.43080359,1779.2,1779.0,3.94716157]
[1745463587579,5.62050359,1779.2,1779.0,6.94716157]
[1745463590755,5.6207192,1779.2,1779.0,6.94716157]
[1745463591087,11.24150745,1779.2,1779.0,6.94716157]
[1745463591288,5.6207192,1779.2,1779.0,6.94716157]
[1745463591465,10.6587192,1779.2,1779.0,6.94716157]
[1745463592083,16.279527,1779.2,1779.0,6.94716157]
[1745463592298,0.8103,1779.1,1778.7,3.7828]
[1745463592598,6.43133066,1779.1,1778.8,3.94716157]
[1745463593250,6.43133066,1779.1,1779.0,3.94716157]
[1745463593457,6.431132,1779.1,1779.0,3.94716157]
[1745463594506,5.62134392,1779.0,1778.6,3.0]
[1745463594809,5.62113546,1779.0,1778.7,3.94716157]
[1745463595783,5.62150742,1778.9,1778.7,3.94716157]
[1745463595985,5.62134681,1779.0,1778.7,3.94716157]
[1745463596807,5.62145549,1778.9,1778.7,3.94716157]
[1745463597604,5.62176748,1778.8,1778.7,3.94716157]
[1745463597797,5.62145549,1778.9,1778.7,3.94716157]
[1745463597798,5.62171177,1778.9,1778.7,3.94716157]
[1745463598772,5.62126362,1779.0,1778.7,3.94716157]
[1745463599199,5.62145853,1778.9,1778.7,3.94716157]
[1745463600312,5.59677853,1778.9,1778.7,3.94716157]
[1745463600606,5.6213653,1779.0,1778.7,3.94716157]
[1745463600910,11.242771,1779.0,1778.7,3.94716157]
[1745463601115,5.62147508,1778.9,1778.7,3.94716157]
[1745463601614,5.035,1778.8,1778.6,3.94716157]
[1745463601824,10.65687233,1778.8,1778.6,3.94716157]
[1745463602936,11.43495786,1779.4,1778.9,5.62126049]
[1745463603095,11.43495786,1779.4,1778.8,0.8255]
[1745463603096,5.035,1779.4,1779.3,3.94716157]
[1745463603301,10.65487186,1779.4,1779.3,3.94716157]
[1745463603496,5.035,1779.4,1779.3,3.94716157]
[1745463605925,10.65487186,1779.4,1779.3,3.94716157]
[1745463606126,5.62035546,1779.3,1779.1,3.94716157]
[1745463606421,10.65507411,1779.4,1779.1,3.94716157]
[1745463606725,10.65507411,1779.4,1779.0,3.8255]
[1745463606726,5.62007411,1779.4,1779.3,3.94716157]
[1745463606925,10.65507411,1779.4,1779.3,3.94716157]
[1745463609239,5.035,1779.4,1779.3,3.94716157]
[1745463609437,10.65487186,1779.4,1779.3,3.94716157]
[1745463612440,9.16556984,1779.4,1779.3,3.94716157]
[1745463612738,3.54569798,1779.4,1779.3,4.34187773]
[1745463613242,9.16556984,1779.4,1779.3,3.94716157]
[1745463613441,6.40034097,1779.3,1779.1,3.94716157]
[1745463614044,5.62019441,1779.3,1779.1,3.94716157]
[1745463615150,5.62038605,1779.3,1779.1,3.94716157]
[1745463615351,5.62036705,1779.3,1779.1,3.94716157]
[1745463615652,5.62050359,1779.2,1779.1,3.94716157]
[1745463615845,5.62039388,1779.3,1779.1,3.94716157]
[1745463619154,9.16573675,1779.4,1779.1,4.34187773]
[1745463619155,3.54569798,1779.4,1779.1,4.34187773]
[1745463619359,9.16560523,1779.4,1779.3,3.94716157]
[1745463621557,3.54569798,1779.4,1779.3,3.94716157]
[1745463622422,5.034,1779.5,1779.3,3.94716157]
[1745463623667,28.68220063,1779.9,1779.5,0.7663]
[1745463623963,28.68220063,1779.9,1779.8,13.3320704]
[1745463623964,3.68925139,1779.9,1779.8,13.3320704]
[1745463624742,3.68925139,1780.1,1779.9,5.61798655]
[1745463624947,3.68925139,1780.1,1780.0,6.94716157]
[1745463625149,3.68925139,1780.1,1780.0,12.56513909]
[1745463625349,3.68925139,1780.1,1780.0,6.94716157]
[1745463625689,3.68925139,1780.1,1780.0,17.27860066]
[1745463626445,3.68925139,1780.1,1780.0,13.33143909]
[1745463626758,3.68925139,1780.1,1780.0,7.71346157]
[1745463627269,3.68925139,1780.1,1780.0,17.27860066]
[1745463628185,3.68925139,1780.1,1780.0,13.33143909]
[1745463628370,3.68925139,1780.1,1780.0,7.71346157]
[1745463629088,5.03,1780.4,1780.0,13.33143909]
[1745463629273,10.64673646,1780.4,1780.2,3.94716157]
[1745463629462,5.03,1780.4,1780.2,3.94716157]
[1745463629663,5.03,1780.4,1780.3,0.7663]
[1745463629864,5.03,1780.4,1780.2,3.94716157]
[1745463630455,10.64671826,1780.4,1780.2,3.94716157]
[1745463630953,5.03,1780.4,1780.2,3.94716157]
[1745463631485,10.64699363,1780.4,1780.2,3.94716157]
[1745463632081,5.03,1780.4,1780.2,3.94716157]
[1745463632579,10.64674019,1780.4,1780.2,3.94716157]
[1745463633083,5.61703083,1780.3,1780.2,3.94716157]
[1745463634287,12.2732476,1780.4,1780.2,3.94716157]
[1745463634604,5.61703083,1780.3,1780.2,3.94716157]
[1745463635602,12.2732476,1780.4,1780.2,3.94716157]
[1745463635806,5.61703083,1780.3,1780.2,3.94716157]
[1745463636110,7.40605867,1780.3,1780.1,3.94716157]
[1745463636294,7.40605867,1780.3,1779.8,3.94716157]
[1745463636295,5.61841646,1779.9,1779.8,3.94716157]
[1745463636497,10.64609063,1780.0,1779.8,3.94716157]
[1745463636701,5.028,1780.0,1779.8,3.94716157]
[1745463636903,10.64597888,1780.0,1779.8,3.94716157]
[1745463637513,5.028,1780.0,1779.8,3.94716157]
[1745463637712,10.6460033,1780.0,1779.8,3.94716157]
[1745463639834,10.64600512,1780.0,1779.8,3.94716157]
[1745463640133,0.8223,1780.5,1779.9,3.8279]
[1745463640331,10.64450269,1780.5,1780.4,3.94716157]
[1745463645317,5.61650269,1780.5,1780.4,3.94716157]
[1745463645534,5.028,1780.5,1780.4,3.94716157]
[1745463645698,10.64439988,1780.5,1780.4,3.94716157]
[1745463647823,10.58822957,1780.5,1780.4,3.94716157]
[1745463650556,4.97182969,1780.5,1780.4,3.94716157]
[1745463650745,10.58822957,1780.5,1780.4,3.94716157]
[1745463651212,4.97182969,1780.5,1780.4,3.94716157]
[1745463651417,10.58822957,1780.5,1780.4,3.94716157]
[1745463652240,6.40743841,1780.9,1780.4,4.34187773]
[1745463652546,6.40743841,1780.9,1780.7,3.94716157]
[1745463652547,10.64276277,1780.8,1780.7,3.94716157]
[1745463652720,5.61608446,1780.6,1780.5,3.94716157]
[1745463657358,5.61576907,1780.7,1780.5,3.94716157]
[1745463658358,6.40730076,1781.0,1780.6,0.8009]
[1745463658558,5.61451491,1781.1,1780.9,3.94716157]
[1745463658724,5.58445149,1781.0,1780.9,3.94716157]
[1745463658925,5.023,1781.0,1780.9,3.94716157]
[1745463659519,10.63782313,1781.0,1780.9,3.94716157]
[1745463661259,5.023,1781.0,1780.9,3.94716157]
[1745463661756,5.61432984,1781.2,1780.9,4.76436157]
[1745463661971,5.023,1781.3,1781.1,3.94716157]
[1745463662370,5.023,1781.4,1781.1,3.94716157]
[1745463662579,5.61356236,1781.4,1781.3,3.94716157]
[1745463662735,5.023,1781.4,1781.3,3.94716157]
[1745463663366,5.023,1781.5,1781.3,4.42359773]
[1745463664366,5.023,1781.5,1781.3,3.94716157]
[1745463665878,5.023,1781.5,1781.3,6.94716157]
[1745463666539,5.61304914,1781.6,1781.3,6.94716157]
[1745463666540,5.022,1781.6,1781.3,6.94716157]
[1745463666742,5.022,1781.6,1781.5,3.94716157]
[1745463667379,5.61349721,1781.5,1781.3,6.94716157]
[1745463667576,11.22700454,1781.5,1781.3,6.94716157]
[1745463667785,5.61402782,1781.3,1781.1,3.94716157]
[1745463667967,5.6137246,1781.4,1781.1,3.94716157]
[1745463668168,5.6140804,1781.3,1781.1,3.94716157]
[1745463668500,11.22822578,1781.3,1781.1,3.94716157]
[1745463668678,11.22869102,1781.2,1780.8,6.43263434]
[1745463668859,5.61507826,1781.0,1780.7,3.94716157]
[1745463669068,5.61536162,1780.9,1780.8,3.0]
[1745463669397,5.61536162,1780.9,1780.7,3.94716157]
[1745463669964,5.61514973,1780.9,1780.7,3.94716157]
[1745463670390,5.61499249,1781.0,1780.7,3.94716157]
[1745463670618,5.61499249,1781.0,1780.9,3.94716157]
[1745463671663,5.61592496,1780.7,1780.6,3.94716157]
[1745463672755,5.61639988,1780.5,1780.4,3.94716157]
[1745463672951,5.61624103,1780.6,1780.4,3.94716157]
[1745463673963,6.43952693,1780.7,1780.4,3.94716157]
[1745463674186,6.43952693,1780.7,1780.6,3.94716157]
[1745463674385,5.021,1780.8,1780.6,3.94716157]
[1745463674701,10.637466,1780.8,1780.6,3.94716157]
[1745463675604,5.022,1780.8,1780.6,3.94716157]
[1745463675899,5.022,1780.9,1780.6,10.03767538]
[1745463676099,0.8191,1781.1,1780.8,9.56257852]
[1745463676409,5.022,1781.1,1781.0,3.94716157]
[1745463676701,10.63650788,1781.1,1781.0,3.94716157]
[1745463676996,12.26157854,1781.1,1781.0,3.94716157]
[1745463677298,5.022,1781.1,1781.0,3.94716157]
[1745463677464,10.63650788,1781.1,1781.0,3.94716157]
[1745463678891,5.022,1781.1,1781.0,3.94716157]
[1745463679104,10.63650788,1781.1,1781.0,3.94716157]
[1745463679967,5.022,1781.1,1781.0,3.94716157]
[1745463680295,0.7865,1781.5,1781.1,5.61420408]
[1745463680508,11.22632134,1781.6,1781.4,3.94716157]
[1745463680703,5.022,1781.5,1781.4,3.94716157]
[1745463681303,10.63524726,1781.5,1781.4,3.94716157]
[1745463682990,5.61375277,1781.4,1781.2,3.94716157]
[1745463683310,5.6138775,1781.3,1781.2,3.94716157]
[1745463684010,5.61375277,1781.4,1781.2,3.94716157]
[1745463684424,11.22761497,1781.4,1781.2,3.94716157]
[1745463684580,5.6138775,1781.3,1781.1,3.94716157]
[1745463684980,13.63909944,1781.4,1781.1,3.94716157]
[1745463685211,5.61390512,1781.3,1781.1,3.94716157]
[1745463685413,6.40029227,1781.4,1781.1,3.94716157]
[1745463685615,6.40012283,1781.4,1780.8,0.7939]
[1745463685815,5.61405779,1781.3,1781.1,3.94716157]
[1745463686028,11.22824026,1781.3,1781.1,3.94716157]
[1745463686231,5.61405779,1781.3,1781.1,3.94716157]
[1745463686385,11.22824973,1781.3,1781.1,3.94716157]
[1745463686722,5.61419267,1781.2,1781.1,3.94716157]
[1745463688925,5.6149988,1781.0,1780.9,3.94716157]
[1745463689130,11.41812443,1781.1,1780.9,3.94716157]
[1745463690514,17.0329207,1781.1,1780.9,3.94716157]
[1745463690714,11.41812443,1781.1,1780.9,3.94716157]
[1745463691209,10.63162443,1781.1,1780.9,3.94716157]
[1745463692748,5.61482313,1781.0,1780.9,3.94716157]
[1745463692946,16.24638478,1781.1,1780.9,3.94716157]
[1745463693158,10.63162443,1781.1,1780.9,3.94716157]
[1745463694669,5.61482313,1781.0,1780.9,3.94716157]
[1745463696741,10.63162443,1781.1,1780.9,3.94716157]
[1745463696946,16.2464207,1781.1,1780.9,3.94716157]
[1745463697148,16.24640234,1781.1,1780.9,3.94716157]
[1745463697455,5.61482313,1781.0,1780.9,3.94716157]
[1745463701467,7.23946789,1781.0,1780.9,3.94716157]
[1745463701637,6.38702313,1781.0,1780.9,3.94716157]
[1745463703172,0.7722,1781.0,1780.9,3.94716157]
[1745463703880,6.38702313,1781.0,1780.9,3.94716157]
[1745463704389,5.61556007,1780.8,1780.7,3.94716157]
[1745463704590,5.61589758,1780.7,1780.6,3.94716157]
[1745463705285,5.61644736,1780.5,1780.4,3.94716157]
[1745463707085,11.4061332,1780.7,1780.4,3.94716157]
[1745463707288,5.61628166,1780.6,1780.4,3.94716157]
[1745463707978,5.61066684,1780.6,1780.4,3.94716157]
[1745463709611,0.63870231,1780.9,1780.4,6.94716157]
[1745463709757,10.63297163,1781.0,1780.8,3.94716157]
[1745463710079,10.63297163,1781.0,1780.9,3.94716157]
[1745463711698,5.61439708,1781.2,1780.9,3.94716157]
[1745463711879,5.018,1781.1,1780.8,5.61530209]
[1745463712204,5.61450788,1781.1,1781.0,3.94716157]
[1745463712360,10.63250788,1781.1,1781.0,3.94716157]
[1745463712757,5.61450788,1781.1,1781.0,3.94716157]
[1745463712996,10.63250788,1781.1,1781.0,3.94716157]
[1745463713852,5.61450788,1781.1,1781.0,3.94716157]
[1745463714058,10.63250788,1781.1,1781.0,3.94716157]
[1745463715169,5.61513841,1780.9,1780.8,3.94716157]
[1745463715356,5.61503124,1781.0,1780.8,4.42096773]
[1745463716000,5.61513841,1780.9,1780.8,3.94716157]
[1745463717060,5.61513841,1780.9,1780.7,0.7909]
[1745463717263,5.6158766,1780.7,1780.6,3.94716157]
[1745463717565,5.61560507,1780.8,1780.6,6.94716157]
[1745463717994,5.61534338,1780.9,1780.6,6.94716157]
[1745463718324,5.61534338,1780.9,1780.8,3.94716157]
[1745463725623,5.6155869,1780.8,1780.7,3.94716157]
[1745463725844,5.61576907,1780.7,1780.6,3.0]
[1745463726050,5.61608446,1780.6,1780.3,4.71996157]
[1745463726252,5.61608446,1780.6,1780.4,0.56168895]
[1745463726550,5.61608446,1780.6,1780.5,3.94716157]
[1745463728954,5.61660572,1780.5,1780.3,3.94716157]
[1745463729114,5.61629854,1780.6,1780.3,6.94716157]
[1745463729454,5.61640074,1780.5,1780.3,6.94716157]
[1745463729862,5.61730342,1780.3,1780.1,0.7728]
[1745463730156,5.61734636,1780.2,1780.0,3.94716157]
[1745463730340,5.61797752,1780.0,1779.8,4.71996157]
[1745463730654,5.61819521,1780.0,1779.9,3.0]
[1745463730955,5.61819521,1780.0,1779.8,4.41915773]
[1745463731322,11.23645302,1780.0,1779.8,4.41915773]
[1745463731543,5.61819521,1780.0,1779.8,3.94716157]
[1745463731852,5.61829316,1779.9,1779.8,3.94716157]
[1745463732027,5.61819521,1780.0,1779.8,3.94716157]
[1745463732219,6.38053906,1780.1,1779.8,3.94716157]
[1745463732419,5.61812458,1780.0,1779.8,3.94716157]
[1745463732618,11.2363553,1780.0,1779.8,3.94716157]
[1745463732941,5.61829316,1779.9,1779.8,3.94716157]
[1745463733946,5.61812458,1780.0,1779.8,3.94716157]
[1745463734866,5.61829316,1779.9,1779.8,3.94716157]
[1745463735435,5.61826532,1780.0,1779.8,3.94716157]
[1745463735756,5.61829316,1779.9,1779.8,3.94716157]
[1745463737190,5.61829316,1779.9,1779.5,9.4152442]
[1745463737485,10.63429316,1779.9,1779.8,3.94716157]
[1745463737787,5.016,1779.9,1779.8,4.74286157]
[1745463739360,5.016,1779.9,1779.8,10.3614704]
[1745463739555,5.61692378,1780.4,1780.0,5.61794329]
[1745463739771,10.63304772,1780.3,1780.1,1.35749433]
[1745463739970,10.63304772,1780.3,1780.2,3.94716157]
[1745463741184,5.016,1780.3,1780.2,3.94716157]
[1745463741385,10.63303083,1780.3,1780.2,3.94716157]
[1745463742084,5.61756622,1780.2,1780.0,3.94716157]
[1745463742391,5.61766192,1780.1,1780.0,6.94716157]
[1745463742591,6.39025507,1780.2,1780.0,6.94716157]
[1745463743558,5.61766192,1780.1,1780.0,3.94716157]
[1745463744164,5.61766192,1780.1,1779.8,3.0]
[1745463744365,5.61766192,1780.1,1780.0,3.94716157]
[1745463747070,5.61934571,1779.6,1779.3,0.7957]
[1745463747275,10.63512458,1779.7,1779.4,3.94716157]
[1745463747469,10.63512458,1779.7,1779.6,3.94716157]
[1745463747791,5.61930372,1779.6,1779.5,3.94716157]
[1745463748414,5.016,1779.7,1779.5,3.94716157]
[1745463748588,10.63492476,1779.7,1779.5,3.94716157]
[1745463748791,5.016,1779.7,1779.5,3.94716157]
[1745463749315,10.63507012,1779.7,1779.5,3.94716157]
[1745463749880,5.61924027,1779.6,1779.5,3.94716157]
[1745463751401,6.40164027,1779.6,1779.3,3.0]
[1745463751600,11.41364027,1779.6,1779.4,3.94716157]
[1745463751894,5.7944,1779.6,1779.4,3.94716157]
[1745463752119,5.012,1779.6,1779.4,3.94716157]
[1745463752734,0.7824,1779.9,1779.5,3.0]
[1745463752890,5.61820513,1780.0,1779.8,3.94716157]
[1745463753289,10.63120513,1780.0,1779.8,3.94716157]
[1745463753529,16.2494958,1780.0,1779.8,3.94716157]
[1745463753834,10.63120513,1780.0,1779.8,3.94716157]
[1745463754441,5.61829316,1779.9,1779.8,3.94716157]
[1745463756336,10.63109773,1780.0,1779.8,3.94716157]
[1745463756538,5.013,1780.1,1779.9,8.61829316]
[1745463756832,5.013,1780.1,1780.0,3.94716157]
[1745463757038,5.013,1780.2,1780.0,3.94716157]
[1745463758353,10.63034647,1780.2,1780.0,3.94716157]
[1745463759334,5.013,1780.2,1780.0,3.94716157]
[1745463763016,5.013,1780.2,1780.0,9.56502608]
[1745463764940,5.013,1780.2,1780.0,3.94716157]
[1745463765741,5.61812351,1780.0,1779.8,3.94716157]
[1745463766554,5.61817109,1780.0,1779.8,3.94716157]
[1745463767061,5.61829316,1779.9,1779.8,3.94716157]
[1745463767363,11.23683663,1779.9,1779.7,3.94716157]
[1745463767521,5.61829316,1779.9,1779.7,3.94716157]
[1745463767727,5.61812349,1780.0,1779.7,3.94716157]
[1745463768927,5.61815965,1780.0,1779.7,3.94716157]
[1745463770628,11.23643397,1780.0,1779.7,3.94716157]
[1745463770908,5.61815965,1780.0,1779.7,3.94716157]
[1745463771064,0.7824,1780.2,1779.9,3.94716157]
[1745463771368,5.61729216,1780.3,1780.1,3.94716157]
[1745463772226,11.23456837,1780.3,1780.1,3.94716157]
[1745463772525,5.61727621,1780.3,1780.1,3.94716157]
[1745463773266,5.61727321,1780.3,1780.1,3.94716157]
[1745463773857,5.61779575,1780.1,1779.9,6.94716157]
[1745463774062,5.61734636,1780.2,1779.9,6.94716157]
[1745463774559,5.61718542,1780.3,1780.1,3.94716157]
[1745463774970,5.61723552,1780.3,1780.1,3.94716157]
[1745463775375,5.61734636,1780.2,1780.1,3.94716157]
[1745463776240,5.61769244,1780.1,1779.9,6.94716157]
[1745463776577,5.61769244,1780.1,1779.9,3.94716157]
[1745463777488,11.23563944,1780.1,1779.9,3.94716157]
[1745463777778,5.61836887,1779.9,1779.7,4.77906157]
[1745463777977,10.62597752,1780.0,1779.8,3.0]
[1745463778677,10.62616994,1780.0,1779.7,4.72506773]
[1745463779881,5.61831247,1779.9,1779.7,4.72506773]
[1745463780079,5.61860883,1779.8,1779.5,0.8319]
[1745463780375,6.4441154,1779.8,1779.5,4.77906157]
[1745463780992,6.44415972,1779.8,1779.5,3.94716157]
[1745463781284,0.8254,1779.8,1779.5,6.94716157]
[1745463781478,6.44415342,1779.8,1779.5,6.94716157]
[1745463782494,5.61893621,1779.7,1779.5,6.94716157]
[1745463782791,12.06313347,1779.8,1779.5,6.94716157]
[1745463783691,12.06311759,1779.8,1779.5,6.94716157]
[1745463783904,5.61924027,1779.6,1779.5,3.94716157]
[1745463784050,10.62724027,1779.6,1779.5,3.94716157]
[1745463786564,10.62724975,1779.6,1779.5,3.94716157]
[1745463786868,5.008,1779.6,1779.5,3.94716157]
[1745463787193,10.62724027,1779.6,1779.5,3.94716157]
[1745463787395,5.61987186,1779.4,1779.3,3.94716157]
[1745463787564,6.63263611,1779.6,1779.3,3.94716157]
[1745463787763,5.61975921,1779.5,1779.3,3.94716157]
[1745463788590,5.61987186,1779.4,1779.3,3.94716157]
[1745463789821,5.6210886,1779.1,1778.9,3.94716157]